[Event "Titled Tuesday Blitz May 11 2021"]
[White "Debashis, Das"]
[Black "Kazakouski, Valery"]
[WhiteFideId "5024854"]
[BlackFideId "13507443"]
[WhiteElo "2470"]
[BlackElo "2546"]
[Result "1-0"]
[Round "06"]
[TimeControl "180+1"]
[Date "2021.05.11"]
[WhiteClock "0:00:13"]
[BlackClock "0:00:08"]

1. e4 {[%clk 0:03:00]}  c5 {[%clk 0:02:55]} 2. Nf3 {[%clk 0:03:01]}  a6 {[%clk 0:02:55]} 3. c3 {[%clk 0:02:58]}  d5 {[%clk 0:02:55]} 4. exd5 {[%clk 0:02:59]}  Qxd5 {[%clk 0:02:56]} 5. d4 {[%clk 0:02:59]}  Bg4 {[%clk 0:02:56]} 6. Be2 {[%clk 0:02:59]}  Nf6 {[%clk 0:02:56]} 7. O-O {[%clk 0:02:56]}  e6 {[%clk 0:02:56]} 8. Be3 {[%clk 0:02:55]}  cxd4 {[%clk 0:02:57]} 9. Nxd4 {[%clk 0:02:54]}  Bxe2 {[%clk 0:02:57]} 10. Qxe2 {[%clk 0:02:55]}  Nc6 {[%clk 0:02:57]} 11. Rd1 {[%clk 0:02:54]}  Be7 {[%clk 0:02:57]} 12. c4 {[%clk 0:02:53]}  Nxd4 {[%clk 0:02:56]} 13. Bxd4 {[%clk 0:02:45]}  Qc6 {[%clk 0:02:57]} 14. Nd2 {[%clk 0:02:36]}  O-O {[%clk 0:02:55]} 15. Nf3 {[%clk 0:02:36]}  Rfd8 {[%clk 0:02:52]} 16. Ne5 {[%clk 0:02:35]}  Qe4 {[%clk 0:02:52]} 17. Qxe4 {[%clk 0:02:33]}  Nxe4 {[%clk 0:02:52]} 18. Bb6 {[%clk 0:02:28]}  Rdc8 {[%clk 0:02:37]} 19. Rac1 {[%clk 0:02:21]}  Bd6 {[%clk 0:02:22]} 20. Nd3 {[%clk 0:02:06]}  Bc7 {[%clk 0:02:18]} 21. Be3 {[%clk 0:02:04]}  Nd6 {[%clk 0:02:05]} 22. b3 {[%clk 0:01:49]}  Nf5 {[%clk 0:02:03]} 23. Bf4 {[%clk 0:01:48]}  Bxf4 {[%clk 0:02:02]} 24. Nxf4 {[%clk 0:01:49]}  Rd8 {[%clk 0:02:02]} 25. Kf1 {[%clk 0:01:37]}  Kf8 {[%clk 0:02:02]} 26. Nd3 {[%clk 0:01:32]}  Rac8 {[%clk 0:01:55]} 27. Rd2 {[%clk 0:01:24]}  Rd4 {[%clk 0:01:47]} 28. Rcd1 {[%clk 0:01:21]}  Rcd8 {[%clk 0:01:47]} 29. Ke1 {[%clk 0:01:20]}  Re4+ {[%clk 0:01:42]} 30. Re2 {[%clk 0:01:17]}  Red4 {[%clk 0:01:42]} 31. Red2 {[%clk 0:01:16]}  Nh4 {[%clk 0:01:23]} 32. Kf1 {[%clk 0:01:01]}  Ke7 {[%clk 0:01:13]} 33. f3 {[%clk 0:00:56]}  g5 {[%clk 0:00:53]} 34. Kf2 {[%clk 0:00:53]}  h5 {[%clk 0:00:52]} 35. g3 {[%clk 0:00:52]}  Ng6 {[%clk 0:00:52]} 36. Ke2 {[%clk 0:00:51]}  b6 {[%clk 0:00:35]} 37. Nb4 {[%clk 0:00:48]}  Rxd2+ {[%clk 0:00:35]} 38. Rxd2 {[%clk 0:00:48]}  Rxd2+ {[%clk 0:00:35]} 39. Kxd2 {[%clk 0:00:49]}  a5 {[%clk 0:00:36]} 40. Nd3 {[%clk 0:00:44]}  Kd6 {[%clk 0:00:32]} 41. a3 {[%clk 0:00:41]}  f5 {[%clk 0:00:32]} 42. b4 {[%clk 0:00:39]}  axb4 {[%clk 0:00:33]} 43. axb4 {[%clk 0:00:40]}  e5 {[%clk 0:00:33]} 44. Ke3 {[%clk 0:00:36]}  g4 {[%clk 0:00:33]} 45. f4 {[%clk 0:00:34]}  e4 {[%clk 0:00:30]} 46. Nb2 {[%clk 0:00:30]}  Nf8 {[%clk 0:00:27]} 47. Na4 {[%clk 0:00:28]}  Kc7 {[%clk 0:00:24]} 48. Nc3 {[%clk 0:00:28]}  Ne6 {[%clk 0:00:17]} 49. Nd5+ {[%clk 0:00:24]}  Kb7 {[%clk 0:00:18]} 50. Nf6 {[%clk 0:00:20]}  Ng7 {[%clk 0:00:16]} 51. Kd4 {[%clk 0:00:18]}  Kc7 {[%clk 0:00:17]} 52. Nd5+ {[%clk 0:00:17]}  Kb7 {[%clk 0:00:17]} 53. Ke5 {[%clk 0:00:16]}  Kc6 {[%clk 0:00:14]} 54. Ne3 {[%clk 0:00:15]}  h4 {[%clk 0:00:06]} 55. gxh4 {[%clk 0:00:14]}  Kd7 {[%clk 0:00:06]} 56. Kf6 {[%clk 0:00:13]}  Nh5+ {[%clk 0:00:06]} 57. Kxf5 {[%clk 0:00:13]}  g3 {[%clk 0:00:07]} 58. hxg3 {[%clk 0:00:13]}  Nxg3+ {[%clk 0:00:08]} 59. Ke5 {[%clk 0:00:13]} 1-0


[Site "https://www.chess.com"]

[Event "Titled Tuesday Blitz May 11 2021"]
[White "Fier, Alexandr"]
[Black "Mohammad Fahad, Rahman"]
[WhiteFideId "2107139"]
[BlackFideId "10207791"]
[WhiteElo "2569"]
[BlackElo "2323"]
[Result "0-1"]
[Round "06"]
[TimeControl "180+1"]
[Date "2021.05.11"]
[WhiteClock "0:00:50"]
[BlackClock "0:00:59"]

1. d4 {[%clk 0:03:00]}  d5 {[%clk 0:02:59]} 2. c4 {[%clk 0:02:59]}  c6 {[%clk 0:03:00]} 3. Nc3 {[%clk 0:02:57]}  Nf6 {[%clk 0:03:00]} 4. Nf3 {[%clk 0:02:57]}  e6 {[%clk 0:03:00]} 5. Bg5 {[%clk 0:02:56]}  Nbd7 {[%clk 0:03:00]} 6. cxd5 {[%clk 0:02:54]}  exd5 {[%clk 0:03:00]} 7. e3 {[%clk 0:02:54]}  h6 {[%clk 0:03:00]} 8. Bh4 {[%clk 0:02:54]}  g5 {[%clk 0:02:59]} 9. Bg3 {[%clk 0:02:54]}  Nh5 {[%clk 0:02:59]} 10. Be5 {[%clk 0:02:45]}  Nxe5 {[%clk 0:02:24]} 11. Nxe5 {[%clk 0:02:46]}  Nf6 {[%clk 0:02:24]} 12. h4 {[%clk 0:02:42]}  Bg7 {[%clk 0:02:19]} 13. Bd3 {[%clk 0:02:31]}  Be6 {[%clk 0:02:18]} 14. hxg5 {[%clk 0:02:21]}  hxg5 {[%clk 0:02:18]} 15. Rxh8+ {[%clk 0:02:22]}  Bxh8 {[%clk 0:02:19]} 16. Qf3 {[%clk 0:02:22]}  Qc7 {[%clk 0:02:07]} 17. Rc1 {[%clk 0:02:18]}  O-O-O {[%clk 0:02:04]} 18. Qg3 {[%clk 0:02:16]}  Nd7 {[%clk 0:01:55]} 19. Qxg5 {[%clk 0:01:18]}  Nxe5 {[%clk 0:01:55]} 20. dxe5 {[%clk 0:01:17]}  Bxe5 {[%clk 0:01:54]} 21. Bf5 {[%clk 0:01:08]}  d4 {[%clk 0:01:37]} 22. Bxe6+ {[%clk 0:01:04]}  fxe6 {[%clk 0:01:36]} 23. Ne4 {[%clk 0:01:03]}  d3 {[%clk 0:01:28]} 24. Qg6 {[%clk 0:01:01]}  Bxb2 {[%clk 0:01:23]} 25. Qxe6+ {[%clk 0:00:59]}  Kb8 {[%clk 0:01:23]} 26. Rd1 {[%clk 0:01:00]}  Qa5+ {[%clk 0:01:00]} 27. Kf1 {[%clk 0:01:00]}  Qh5 {[%clk 0:01:00]} 28. Ke1 {[%clk 0:00:50]}  Qe2# {[%clk 0:00:59]} 0-1


[Site "https://www.chess.com"]

[Event "Titled Tuesday Blitz May 11 2021"]
[White "Ivic, Velimir"]
[Black "Ortiz Suarez, Isan Reynaldo"]
[WhiteFideId "950122"]
[BlackFideId "3507165"]
[WhiteElo "2509"]
[BlackElo "2539"]
[Result "1/2-1/2"]
[Round "06"]
[TimeControl "180+1"]
[Date "2021.05.11"]
[WhiteClock "0:00:02"]
[BlackClock "0:00:12"]

1. e4 {[%clk 0:03:00]}  c5 {[%clk 0:02:59]} 2. Nf3 {[%clk 0:03:01]}  d6 {[%clk 0:02:59]} 3. d4 {[%clk 0:03:01]}  cxd4 {[%clk 0:03:00]} 4. Nxd4 {[%clk 0:03:02]}  Nf6 {[%clk 0:03:00]} 5. Nc3 {[%clk 0:03:03]}  a6 {[%clk 0:03:01]} 6. a4 {[%clk 0:03:00]}  e6 {[%clk 0:03:00]} 7. g4 {[%clk 0:02:57]}  Nc6 {[%clk 0:02:49]} 8. g5 {[%clk 0:02:54]}  Nd7 {[%clk 0:02:49]} 9. h4 {[%clk 0:02:46]}  Be7 {[%clk 0:02:49]} 10. Be3 {[%clk 0:02:44]}  O-O {[%clk 0:02:49]} 11. Rg1 {[%clk 0:02:41]}  Qc7 {[%clk 0:02:47]} 12. h5 {[%clk 0:02:38]}  Re8 {[%clk 0:02:25]} 13. g6 {[%clk 0:02:31]}  Nde5 {[%clk 0:02:18]} 14. gxf7+ {[%clk 0:02:23]}  Nxf7 {[%clk 0:02:16]} 15. Qd2 {[%clk 0:02:15]}  Bf6 {[%clk 0:02:08]} 16. Be2 {[%clk 0:02:12]}  Bd7 {[%clk 0:02:03]} 17. Nf5 {[%clk 0:01:31]}  Kh8 {[%clk 0:01:32]} 18. h6 {[%clk 0:01:28]}  g6 {[%clk 0:01:21]} 19. Ng7 {[%clk 0:01:27]}  Rec8 {[%clk 0:01:16]} 20. Rd1 {[%clk 0:00:36]}  Nb4 {[%clk 0:01:15]} 21. Kf1 {[%clk 0:00:33]}  b5 {[%clk 0:01:01]} 22. Bg4 {[%clk 0:00:32]}  e5 {[%clk 0:00:51]} 23. Bxd7 {[%clk 0:00:23]}  Qxd7 {[%clk 0:00:52]} 24. axb5 {[%clk 0:00:20]}  axb5 {[%clk 0:00:52]} 25. Qe2 {[%clk 0:00:20]}  Bxg7 {[%clk 0:00:49]} 26. hxg7+ {[%clk 0:00:20]}  Kxg7 {[%clk 0:00:50]} 27. Rh1 {[%clk 0:00:20]}  Rc4 {[%clk 0:00:42]} 28. Kg2 {[%clk 0:00:19]}  Rac8 {[%clk 0:00:41]} 29. Qf3 {[%clk 0:00:19]}  Nxc2 {[%clk 0:00:39]} 30. Nd5 {[%clk 0:00:13]}  Qe6 {[%clk 0:00:34]} 31. b3 {[%clk 0:00:10]}  Nxe3+ {[%clk 0:00:32]} 32. Qxe3 {[%clk 0:00:11]}  Qg4+ {[%clk 0:00:24]} 33. Qg3 {[%clk 0:00:06]}  Qxe4+ {[%clk 0:00:23]} 34. Kh2 {[%clk 0:00:02]}  Rc2 {[%clk 0:00:21]} 35. Rhg1 {[%clk 0:00:01]}  Qf5 {[%clk 0:00:20]} 36. Ne3 {[%clk 0:00:01]}  Rxf2+ {[%clk 0:00:18]} 37. Rg2 {[%clk 0:00:02]}  Rxg2+ {[%clk 0:00:17]} 38. Kxg2 {[%clk 0:00:03]}  Qe4+ {[%clk 0:00:17]} 39. Qf3 {[%clk 0:00:03]}  Qxf3+ {[%clk 0:00:18]} 40. Kxf3 {[%clk 0:00:04]}  Rc3 {[%clk 0:00:18]} 41. b4 {[%clk 0:00:05]}  Rb3 {[%clk 0:00:18]} 42. Rc1 {[%clk 0:00:05]}  Kf6 {[%clk 0:00:18]} 43. Rc7 {[%clk 0:00:06]}  Ng5+ {[%clk 0:00:18]} 44. Ke2 {[%clk 0:00:06]}  Ke6 {[%clk 0:00:18]} 45. Nc2 {[%clk 0:00:06]}  Ne4 {[%clk 0:00:17]} 46. Rb7 {[%clk 0:00:06]}  d5 {[%clk 0:00:18]} 47. Ne3 {[%clk 0:00:06]}  d4 {[%clk 0:00:18]} 48. Rb6+ {[%clk 0:00:07]}  Kd7 {[%clk 0:00:18]} 49. Ng4 {[%clk 0:00:07]}  h5 {[%clk 0:00:17]} 50. Nxe5+ {[%clk 0:00:07]}  Kc7 {[%clk 0:00:18]} 51. Rxg6 {[%clk 0:00:07]}  Rxb4 {[%clk 0:00:18]} 52. Rh6 {[%clk 0:00:07]}  Rb1 {[%clk 0:00:16]} 53. Kd3 {[%clk 0:00:06]}  Ng3 {[%clk 0:00:14]} 54. Kxd4 {[%clk 0:00:06]}  b4 {[%clk 0:00:14]} 55. Kc5 {[%clk 0:00:05]}  b3 {[%clk 0:00:13]} 56. Rh7+ {[%clk 0:00:06]}  Kd8 {[%clk 0:00:14]} 57. Kd6 {[%clk 0:00:05]}  Rd1+ {[%clk 0:00:13]} 58. Ke6 {[%clk 0:00:03]}  b2 {[%clk 0:00:13]} 59. Nc6+ {[%clk 0:00:01]}  Kc8 {[%clk 0:00:13]} 60. Na7+ {[%clk 0:00:01]}  Kb8 {[%clk 0:00:13]} 61. Nc6+ {[%clk 0:00:02]}  Kc8 {[%clk 0:00:13]} 62. Na7+ {[%clk 0:00:02]}  Kb8 {[%clk 0:00:12]} 63. Nc6+ {[%clk 0:00:02]}  Kc8 {[%clk 0:00:12]} 1/2-1/2


[Site "https://www.chess.com"]

[Event "Titled Tuesday Blitz May 11 2021"]
[White "Nakamura, Hikaru"]
[Black "Praggnanandhaa R"]
[WhiteFideId "2016192"]
[BlackFideId "25059530"]
[WhiteElo "2900"]
[BlackElo "2555"]
[Result "1-0"]
[Round "06"]
[TimeControl "180+1"]
[Date "2021.05.11"]
[WhiteClock "0:00:16"]
[BlackClock "0:00:01"]

1. Nf3 {[%clk 0:03:00]}  d5 {[%clk 0:02:59]} 2. b3 {[%clk 0:02:58]}  Bg4 {[%clk 0:02:58]} 3. e3 {[%clk 0:02:56]}  e6 {[%clk 0:02:57]} 4. Bb2 {[%clk 0:02:55]}  Nf6 {[%clk 0:02:58]} 5. d3 {[%clk 0:02:54]}  a5 {[%clk 0:02:53]} 6. a3 {[%clk 0:02:53]}  Nbd7 {[%clk 0:02:50]} 7. h3 {[%clk 0:02:53]}  Bh5 {[%clk 0:02:50]} 8. g4 {[%clk 0:02:53]}  Bg6 {[%clk 0:02:49]} 9. Nh4 {[%clk 0:02:54]}  a4 {[%clk 0:02:38]} 10. b4 {[%clk 0:02:53]}  c5 {[%clk 0:02:38]} 11. bxc5 {[%clk 0:02:52]}  Bxc5 {[%clk 0:02:39]} 12. Nd2 {[%clk 0:02:49]}  O-O {[%clk 0:02:30]} 13. Bg2 {[%clk 0:02:48]}  Ra6 {[%clk 0:02:26]} 14. Nxg6 {[%clk 0:02:39]}  hxg6 {[%clk 0:02:25]} 15. O-O {[%clk 0:02:31]}  Rb6 {[%clk 0:02:19]} 16. Qc1 {[%clk 0:02:30]}  Rc6 {[%clk 0:02:13]} 17. c4 {[%clk 0:02:30]}  Bd6 {[%clk 0:02:04]} 18. Qd1 {[%clk 0:02:19]}  Ne5 {[%clk 0:01:45]} 19. c5 {[%clk 0:01:36]}  Bb8 {[%clk 0:01:30]} 20. d4 {[%clk 0:01:30]}  Nd3 {[%clk 0:01:20]} 21. Bc3 {[%clk 0:01:30]}  e5 {[%clk 0:01:20]} 22. dxe5 {[%clk 0:01:14]}  Bxe5 {[%clk 0:01:14]} 23. Bxe5 {[%clk 0:01:14]}  Nxe5 {[%clk 0:01:15]} 24. Qxa4 {[%clk 0:01:15]}  Rxc5 {[%clk 0:01:14]} 25. Rab1 {[%clk 0:01:15]}  Qc7 {[%clk 0:01:07]} 26. Qd4 {[%clk 0:01:11]}  b6 {[%clk 0:00:53]} 27. Qb2 {[%clk 0:01:06]}  Rc2 {[%clk 0:00:46]} 28. Qd4 {[%clk 0:01:03]}  Nc6 {[%clk 0:00:44]} 29. Qxb6 {[%clk 0:00:59]}  Qe7 {[%clk 0:00:39]} 30. Rb2 {[%clk 0:00:38]}  Rxb2 {[%clk 0:00:28]} 31. Qxb2 {[%clk 0:00:37]}  Ra8 {[%clk 0:00:28]} 32. Ra1 {[%clk 0:00:36]}  Ne4 {[%clk 0:00:24]} 33. Nxe4 {[%clk 0:00:36]}  dxe4 {[%clk 0:00:25]} 34. Qc2 {[%clk 0:00:36]}  Qf6 {[%clk 0:00:15]} 35. Ra2 {[%clk 0:00:36]}  Qe6 {[%clk 0:00:13]} 36. Bxe4 {[%clk 0:00:22]}  Nb4 {[%clk 0:00:13]} 37. Qb1 {[%clk 0:00:23]}  Nxa2 {[%clk 0:00:09]} 38. Bxa8 {[%clk 0:00:23]}  Qc4 {[%clk 0:00:08]} 39. Bf3 {[%clk 0:00:22]}  Nc3 {[%clk 0:00:08]} 40. Qb4 {[%clk 0:00:22]}  Qd3 {[%clk 0:00:08]} 41. Kg2 {[%clk 0:00:22]}  Qc2 {[%clk 0:00:06]} 42. Qc4 {[%clk 0:00:22]}  Qb2 {[%clk 0:00:05]} 43. a4 {[%clk 0:00:22]}  Qa3 {[%clk 0:00:05]} 44. Bc6 {[%clk 0:00:21]}  Nd1 {[%clk 0:00:05]} 45. Be8 {[%clk 0:00:19]}  Qe7 {[%clk 0:00:03]} 46. Bb5 {[%clk 0:00:19]}  Qf6 {[%clk 0:00:02]} 47. Qf4 {[%clk 0:00:18]}  Qb2 {[%clk 0:00:02]} 48. Bc4 {[%clk 0:00:18]}  Qb7+ {[%clk 0:00:02]} 49. Qf3 {[%clk 0:00:19]}  Qd7 {[%clk 0:00:02]} 50. a5 {[%clk 0:00:18]}  Nb2 {[%clk 0:00:02]} 51. Bb3 {[%clk 0:00:15]}  Nd3 {[%clk 0:00:02]} 52. Qd5 {[%clk 0:00:16]}  Ne1+ {[%clk 0:00:01]} 53. Kf1 {[%clk 0:00:16]} 1-0


[Site "https://www.chess.com"]

[Event "Titled Tuesday Blitz May 11 2021"]
[White "Sanal, Vahap"]
[Black "gurelediz"]
[WhiteFideId "6300545"]
[WhiteElo "2507"]
[BlackElo "2738"]
[Result "1-0"]
[Round "06"]
[TimeControl "180+1"]
[Date "2021.05.11"]
[WhiteClock "0:00:27"]
[BlackClock "0:00:02"]

1. d4 {[%clk 0:03:00]}  Nf6 {[%clk 0:02:59]} 2. Bf4 {[%clk 0:02:57]}  e6 {[%clk 0:02:59]} 3. e3 {[%clk 0:02:53]}  c5 {[%clk 0:02:56]} 4. Nf3 {[%clk 0:02:52]}  Nc6 {[%clk 0:02:56]} 5. Nbd2 {[%clk 0:02:50]}  Be7 {[%clk 0:02:54]} 6. c3 {[%clk 0:02:50]}  O-O {[%clk 0:02:53]} 7. h3 {[%clk 0:02:49]}  d6 {[%clk 0:02:54]} 8. Be2 {[%clk 0:02:46]}  Re8 {[%clk 0:02:54]} 9. O-O {[%clk 0:02:45]}  Bf8 {[%clk 0:02:52]} 10. Bh2 {[%clk 0:02:42]}  e5 {[%clk 0:02:43]} 11. dxe5 {[%clk 0:02:38]}  Nxe5 {[%clk 0:02:33]} 12. Nxe5 {[%clk 0:02:34]}  dxe5 {[%clk 0:02:33]} 13. Nc4 {[%clk 0:02:32]}  e4 {[%clk 0:02:32]} 14. Nd6 {[%clk 0:02:27]}  Bxd6 {[%clk 0:02:30]} 15. Qxd6 {[%clk 0:02:16]}  Qxd6 {[%clk 0:02:29]} 16. Bxd6 {[%clk 0:02:17]}  b6 {[%clk 0:02:25]} 17. a4 {[%clk 0:02:14]}  Bd7 {[%clk 0:02:12]} 18. Rfd1 {[%clk 0:02:11]}  Bc6 {[%clk 0:02:09]} 19. a5 {[%clk 0:02:09]}  Nd7 {[%clk 0:01:50]} 20. axb6 {[%clk 0:02:04]}  axb6 {[%clk 0:01:51]} 21. Bc7 {[%clk 0:02:00]}  Rec8 {[%clk 0:01:31]} 22. Rxa8 {[%clk 0:01:58]}  Rxa8 {[%clk 0:01:26]} 23. Bg4 {[%clk 0:01:57]}  Nf6 {[%clk 0:01:18]} 24. Bxb6 {[%clk 0:01:57]}  Nxg4 {[%clk 0:01:17]} 25. hxg4 {[%clk 0:01:57]}  c4 {[%clk 0:01:17]} 26. Rd6 {[%clk 0:01:45]}  Rc8 {[%clk 0:01:12]} 27. Kh2 {[%clk 0:01:39]}  f6 {[%clk 0:01:08]} 28. Rd4 {[%clk 0:01:38]}  Bb7 {[%clk 0:01:03]} 29. Ba5 {[%clk 0:01:38]}  Ba8 {[%clk 0:00:56]} 30. Bb4 {[%clk 0:01:37]}  Kf7 {[%clk 0:00:55]} 31. Rd7+ {[%clk 0:01:37]}  Kg6 {[%clk 0:00:55]} 32. Kg3 {[%clk 0:01:37]}  Bc6 {[%clk 0:00:51]} 33. Ra7 {[%clk 0:01:35]}  Rd8 {[%clk 0:00:41]} 34. Rc7 {[%clk 0:01:33]}  Bb5 {[%clk 0:00:41]} 35. Rc5 {[%clk 0:01:33]}  Ba6 {[%clk 0:00:42]} 36. Rc6 {[%clk 0:01:27]}  Bb5 {[%clk 0:00:41]} 37. Rb6 {[%clk 0:01:28]}  Ba4 {[%clk 0:00:41]} 38. Rb7 {[%clk 0:01:25]}  Bc2 {[%clk 0:00:37]} 39. Bc5 {[%clk 0:01:24]}  Ra8 {[%clk 0:00:31]} 40. Kf4 {[%clk 0:01:18]}  Bd3 {[%clk 0:00:31]} 41. Bb4 {[%clk 0:01:17]}  Rc8 {[%clk 0:00:30]} 42. Rd7 {[%clk 0:01:16]}  Re8 {[%clk 0:00:28]} 43. Ra7 {[%clk 0:01:15]}  Rc8 {[%clk 0:00:25]} 44. Kg3 {[%clk 0:01:15]}  Re8 {[%clk 0:00:25]} 45. Rb7 {[%clk 0:01:13]}  Rc8 {[%clk 0:00:25]} 46. f4 {[%clk 0:01:09]}  exf3 {[%clk 0:00:16]} 47. gxf3 {[%clk 0:01:10]}  Rg8 {[%clk 0:00:11]} 48. e4 {[%clk 0:01:09]}  h5 {[%clk 0:00:10]} 49. Bc5 {[%clk 0:00:58]}  hxg4 {[%clk 0:00:10]} 50. Kxg4 {[%clk 0:00:59]}  Re8 {[%clk 0:00:08]} 51. Kf4 {[%clk 0:00:59]}  Rc8 {[%clk 0:00:08]} 52. Bd4 {[%clk 0:00:58]}  Re8 {[%clk 0:00:07]} 53. Ke3 {[%clk 0:00:56]}  Bc2 {[%clk 0:00:05]} 54. Rc7 {[%clk 0:00:55]}  Bb3 {[%clk 0:00:05]} 55. f4 {[%clk 0:00:54]}  Ra8 {[%clk 0:00:03]} 56. f5+ {[%clk 0:00:54]}  Kh6 {[%clk 0:00:04]} 57. Bc5 {[%clk 0:00:52]}  Re8 {[%clk 0:00:03]} 58. Kf3 {[%clk 0:00:49]}  Bd1+ {[%clk 0:00:03]} 59. Ke3 {[%clk 0:00:38]}  Bc2 {[%clk 0:00:03]} 60. Be7 {[%clk 0:00:39]}  Bd3 {[%clk 0:00:03]} 61. Kf4 {[%clk 0:00:39]}  Bc2 {[%clk 0:00:03]} 62. Ke3 {[%clk 0:00:33]}  Kh7 {[%clk 0:00:03]} 63. Kd4 {[%clk 0:00:32]}  Bd3 {[%clk 0:00:01]} 64. b4 {[%clk 0:00:30]}  Kg8 {[%clk 0:00:02]} 65. b5 {[%clk 0:00:29]}  Kf7 {[%clk 0:00:02]} 66. b6 {[%clk 0:00:27]} 1-0


[Site "https://www.chess.com"]

[Event "Titled Tuesday Blitz May 11 2021"]
[White "Svane, Rasmus"]
[Black "Lintchevski, Daniil"]
[WhiteFideId "4657101"]
[BlackFideId "4171055"]
[WhiteElo "2669"]
[BlackElo "2505"]
[Result "1-0"]
[Round "06"]
[TimeControl "180+1"]
[Date "2021.05.11"]
[WhiteClock "0:00:31"]
[BlackClock "0:00:22"]

1. Nf3 {[%clk 0:03:00]}  d5 {[%clk 0:02:56]} 2. g3 {[%clk 0:03:01]}  Bg4 {[%clk 0:02:56]} 3. Bg2 {[%clk 0:03:01]}  c6 {[%clk 0:02:56]} 4. h3 {[%clk 0:03:01]}  Bh5 {[%clk 0:02:56]} 5. O-O {[%clk 0:03:02]}  Nd7 {[%clk 0:02:55]} 6. d4 {[%clk 0:03:02]}  Ngf6 {[%clk 0:02:55]} 7. c4 {[%clk 0:03:03]}  e6 {[%clk 0:02:55]} 8. cxd5 {[%clk 0:03:03]}  exd5 {[%clk 0:02:36]} 9. Ne5 {[%clk 0:03:04]}  Bg6 {[%clk 0:02:17]} 10. Nc3 {[%clk 0:03:03]}  Be7 {[%clk 0:02:15]} 11. f4 {[%clk 0:03:03]}  Be4 {[%clk 0:02:13]} 12. Nxe4 {[%clk 0:03:02]}  Nxe4 {[%clk 0:02:12]} 13. Bxe4 {[%clk 0:03:02]}  dxe4 {[%clk 0:02:12]} 14. Qb3 {[%clk 0:03:03]}  Nxe5 {[%clk 0:02:11]} 15. dxe5 {[%clk 0:03:04]}  Qb6+ {[%clk 0:02:09]} 16. Be3 {[%clk 0:03:02]}  Bc5 {[%clk 0:02:00]} 17. Bxc5 {[%clk 0:02:53]}  Qxc5+ {[%clk 0:02:01]} 18. Kg2 {[%clk 0:02:54]}  O-O {[%clk 0:01:57]} 19. Rad1 {[%clk 0:02:45]}  Rad8 {[%clk 0:01:45]} 20. e6 {[%clk 0:02:46]}  Qe7 {[%clk 0:01:38]} 21. exf7+ {[%clk 0:02:29]}  Qxf7 {[%clk 0:01:38]} 22. Qxf7+ {[%clk 0:02:22]}  Kxf7 {[%clk 0:01:39]} 23. Kf2 {[%clk 0:02:23]}  Rd5 {[%clk 0:01:14]} 24. Ke3 {[%clk 0:02:18]}  Rfd8 {[%clk 0:01:15]} 25. Rxd5 {[%clk 0:02:18]}  Rxd5 {[%clk 0:01:15]} 26. Rc1 {[%clk 0:02:15]}  g5 {[%clk 0:01:07]} 27. fxg5 {[%clk 0:01:55]}  Rxg5 {[%clk 0:01:08]} 28. g4 {[%clk 0:01:55]}  h5 {[%clk 0:01:08]} 29. Rf1+ {[%clk 0:01:36]}  Ke6 {[%clk 0:01:07]} 30. Rf4 {[%clk 0:01:35]}  hxg4 {[%clk 0:01:08]} 31. Rxe4+ {[%clk 0:01:31]}  Kd5 {[%clk 0:01:05]} 32. hxg4 {[%clk 0:01:29]}  Rg8 {[%clk 0:01:05]} 33. Rf4 {[%clk 0:01:24]}  Ke6 {[%clk 0:01:00]} 34. Kf3 {[%clk 0:01:00]}  b5 {[%clk 0:01:00]} 35. b4 {[%clk 0:01:00]}  a5 {[%clk 0:00:52]} 36. a3 {[%clk 0:01:00]}  axb4 {[%clk 0:00:49]} 37. axb4 {[%clk 0:01:00]}  Ra8 {[%clk 0:00:49]} 38. g5 {[%clk 0:00:59]}  Ra3+ {[%clk 0:00:39]} 39. e3 {[%clk 0:00:49]}  Ra8 {[%clk 0:00:32]} 40. Kg4 {[%clk 0:00:48]}  Rb8 {[%clk 0:00:30]} 41. Rf5 {[%clk 0:00:36]}  Rg8 {[%clk 0:00:27]} 42. e4 {[%clk 0:00:35]}  Kd6 {[%clk 0:00:27]} 43. Kf4 {[%clk 0:00:33]}  Ke6 {[%clk 0:00:26]} 44. Rf6+ {[%clk 0:00:33]}  Kd7 {[%clk 0:00:26]} 45. g6 {[%clk 0:00:33]}  Ke7 {[%clk 0:00:22]} 46. Kf5 {[%clk 0:00:32]}  Rh8 {[%clk 0:00:22]} 47. Rf7+ {[%clk 0:00:31]}  Kd6 {[%clk 0:00:22]} 48. e5+ {[%clk 0:00:31]}  Kd5 {[%clk 0:00:22]} 1-0


[Site "https://www.chess.com"]

[Event "Titled Tuesday Blitz May 11 2021"]
[White "Tristan, Leonardo"]
[Black "Narayanan.S.L"]
[WhiteFideId "113816"]
[BlackFideId "5058422"]
[WhiteElo "2404"]
[BlackElo "2617"]
[Result "0-1"]
[Round "06"]
[TimeControl "180+1"]
[Date "2021.05.11"]
[WhiteClock "0:00:04"]
[BlackClock "0:01:31"]

1. d4 {[%clk 0:03:00]}  e6 {[%clk 0:02:59]} 2. Nf3 {[%clk 0:02:57]}  c5 {[%clk 0:02:58]} 3. c3 {[%clk 0:02:57]}  Nf6 {[%clk 0:02:57]} 4. Bf4 {[%clk 0:02:57]}  d5 {[%clk 0:02:57]} 5. e3 {[%clk 0:02:56]}  Bd6 {[%clk 0:02:57]} 6. Bb5+ {[%clk 0:02:56]}  Nc6 {[%clk 0:02:55]} 7. Bg3 {[%clk 0:02:56]}  O-O {[%clk 0:02:48]} 8. Nbd2 {[%clk 0:02:57]}  h6 {[%clk 0:02:46]} 9. Bxc6 {[%clk 0:02:53]}  bxc6 {[%clk 0:02:46]} 10. Qa4 {[%clk 0:02:53]}  Bxg3 {[%clk 0:02:45]} 11. hxg3 {[%clk 0:02:53]}  Qb6 {[%clk 0:02:45]} 12. Qa3 {[%clk 0:02:52]}  cxd4 {[%clk 0:02:43]} 13. cxd4 {[%clk 0:02:52]}  Rb8 {[%clk 0:02:40]} 14. b3 {[%clk 0:02:27]}  Ba6 {[%clk 0:02:39]} 15. Qc5 {[%clk 0:02:27]}  Qxc5 {[%clk 0:02:26]} 16. dxc5 {[%clk 0:02:27]}  Nd7 {[%clk 0:02:27]} 17. Rc1 {[%clk 0:01:33]}  Rb5 {[%clk 0:02:15]} 18. Rh4 {[%clk 0:01:06]}  Rxc5 {[%clk 0:02:11]} 19. Rxc5 {[%clk 0:00:47]}  Nxc5 {[%clk 0:02:12]} 20. Ne5 {[%clk 0:00:48]}  Nd3+ {[%clk 0:02:07]} 21. Nxd3 {[%clk 0:00:47]}  Bxd3 {[%clk 0:02:08]} 22. Ra4 {[%clk 0:00:40]}  a6 {[%clk 0:01:51]} 23. Ra5 {[%clk 0:00:35]}  Rc8 {[%clk 0:01:48]} 24. Rc5 {[%clk 0:00:34]}  Kf8 {[%clk 0:01:48]} 25. b4 {[%clk 0:00:34]}  Ke7 {[%clk 0:01:47]} 26. a3 {[%clk 0:00:33]}  Kd6 {[%clk 0:01:46]} 27. Nb3 {[%clk 0:00:34]}  Bc4 {[%clk 0:01:43]} 28. Na5 {[%clk 0:00:33]}  Bb5 {[%clk 0:01:44]} 29. Kd2 {[%clk 0:00:30]}  e5 {[%clk 0:01:42]} 30. Kc3 {[%clk 0:00:30]}  f6 {[%clk 0:01:40]} 31. Kb3 {[%clk 0:00:31]}  Bf1 {[%clk 0:01:37]} 32. Rc1 {[%clk 0:00:19]}  Bxg2 {[%clk 0:01:37]} 33. Nb7+ {[%clk 0:00:19]}  Kc7 {[%clk 0:01:37]} 34. Nc5 {[%clk 0:00:20]}  Kb6 {[%clk 0:01:33]} 35. Ne6 {[%clk 0:00:13]}  d4 {[%clk 0:01:32]} 36. Nxg7 {[%clk 0:00:09]}  dxe3 {[%clk 0:01:32]} 37. fxe3 {[%clk 0:00:09]}  Rg8 {[%clk 0:01:33]} 38. Nf5 {[%clk 0:00:08]}  Be4 {[%clk 0:01:33]} 39. Nd6 {[%clk 0:00:06]}  Bd5+ {[%clk 0:01:34]} 40. Ka4 {[%clk 0:00:03]}  Rxg3 {[%clk 0:01:34]} 41. Nc8+ {[%clk 0:00:02]}  Kc7 {[%clk 0:01:34]} 42. Ne7 {[%clk 0:00:03]}  Be4 {[%clk 0:01:34]} 43. Rc3 {[%clk 0:00:02]}  f5 {[%clk 0:01:33]} 44. Kb3 {[%clk 0:00:01]}  f4 {[%clk 0:01:33]} 45. exf4 {[%clk 0:00:02]}  exf4 {[%clk 0:01:34]} 46. Kc4 {[%clk 0:00:01]}  Rxc3+ {[%clk 0:01:31]} 47. Kxc3 {[%clk 0:00:02]}  f3 {[%clk 0:01:31]} 48. Kd2 {[%clk 0:00:02]}  h5 {[%clk 0:01:32]} 49. Ke3 {[%clk 0:00:02]}  h4 {[%clk 0:01:32]} 50. Ng8 {[%clk 0:00:02]}  h3 {[%clk 0:01:31]} 51. Nf6 {[%clk 0:00:03]}  h2 {[%clk 0:01:32]} 52. Nxe4 {[%clk 0:00:04]}  h1=Q {[%clk 0:01:32]} 53. Nf2 {[%clk 0:00:05]}  Qa1 {[%clk 0:01:31]} 54. Kxf3 {[%clk 0:00:04]}  Qxa3+ {[%clk 0:01:31]} 0-1


[Site "https://www.chess.com"]